[Event "European Rapid Championship 2021"]
[Site "Katowice"]
[Date "2021.12.19"]
[Round "8.28"]
[White "Gerasimenyuk, Mikhail"]
[Black "Sanz Wawer, Daniel"]
[Result "0-1"]
[ECO "A46"]
[WhiteElo "1984"]
[BlackElo "2371"]
[Annotator "NA"]
[PlyCount "72"]
[EventDate "2021.12.18"]
[EventType "swiss"]
[EventCountry "POL"]
[SourceTitle "playchess.com"]
[Source "ChessBase"]
[SourceQuality "1"]
[TimeControl "900+10"]

1. d4 {[%emt 0:00:01]} Nf6 {[%emt 0:00:03]} 2. Nf3 {[%emt 0:00:02]} e6 {
[%emt 0:00:02]} 3. Bg5 {[%emt 0:00:02]} d5 {[%emt 0:00:05]} 4. e3 {[%emt 0:00:
03]} Be7 {[%emt 0:00:05]} 5. Bd3 {[%emt 0:00:04]} O-O {[%emt 0:00:04]} 6. Nbd2
{[%emt 0:00:03]} Nbd7 {[%emt 0:00:02]} 7. c3 {[%emt 0:00:10]} c5 {[%emt 0:00:
04]} 8. h4 {[%emt 0:00:12]} b6 {[%emt 0:00:05]} 9. g4 {[%emt 0:00:21]} Bb7 {
[%emt 0:00:24]} 10. Qc2 {[%emt 0:00:27]} c4 {[%emt 0:00:26]} 11. Be2 {[%emt 0:
00:13]} b5 {[%emt 0:00:01]} 12. Bxf6 {[%emt 0:00:10]} Nxf6 {[%emt 0:00:05]} 13.
Ne5 {[%emt 0:00:11]} Ne4 {[%emt 0:00:13]} 14. g5 {[%emt 0:00:32]} f6 {[%emt 0:
00:51]} 15. gxf6 {[%emt 0:00:17]} Bxf6 {[%emt 0:00:02]} 16. Nxe4 {[%emt 0:00:
22]} dxe4 {[%emt 0:00:05]} 17. h5 {[%emt 0:01:19]} Bxe5 {[%emt 0:00:31]} 18.
dxe5 {[%emt 0:00:02]} Qd5 {[%emt 0:00:11]} 19. Bg4 {[%emt 0:02:46]} Qxe5 {
[%emt 0:00:06]} 20. O-O-O {[%emt 0:00:11]} Bd5 {[%emt 0:00:06]} 21. Rdg1 {
[%emt 0:00:16]} Rf7 {[%emt 0:00:13]} 22. Rg2 {[%emt 0:00:17]} h6 {[%emt 0:00:
11]} 23. Rhg1 {[%emt 0:00:15]} a5 {[%emt 0:00:02]} 24. Qd2 {[%emt 0:01:13]} b4
{[%emt 0:00:24]} 25. Bd1 {[%emt 0:00:17]} a4 {[%emt 0:01:39]} 26. Qd4 {[%emt 0:
04:36]} Qxd4 {[%emt 0:00:06]} 27. cxd4 {[%emt 0:00:12]} a3 {[%emt 0:00:31]} 28.
b3 {[%emt 0:00:31]} cxb3 {[%emt 0:00:34]} 29. Bxb3 {[%emt 0:00:03]} Bxb3 {
[%emt 0:00:17]} 30. axb3 {[%emt 0:00:01]} Ra5 {[%emt 0:00:02]} 31. Rg6 {
[%emt 0:01:03]} Rxh5 {[%emt 0:00:17]} 32. Rxe6 {[%emt 0:00:17]} Rxf2 {[%emt 0:
00:21]} 33. Re7 {[%emt 0:00:34]} Rg5 {[%emt 0:00:02]} 34. Rxg5 {[%emt 0:03:12]}
hxg5 {[%emt 0:00:01]} 35. Kb1 {[%emt 0:00:00]} g4 {[%emt 0:00:16]} 36. Rxe4 {
[%emt 0:00:08]} g3 {[%emt 0:00:03]} 0-1

[Event "European Rapid Championship 2021"]
[Site "Katowice"]
[Date "2021.12.19"]
[Round "8.29"]
[White "Baum, Jonasz"]
[Black "Kowalczyk, Mariusz"]
[Result "0-1"]
[ECO "E15"]
[WhiteElo "2343"]
[BlackElo "2047"]
[Annotator "NA"]
[PlyCount "90"]
[EventDate "2021.12.18"]
[EventType "swiss"]
[EventCountry "POL"]
[SourceTitle "playchess.com"]
[Source "ChessBase"]
[SourceQuality "1"]
[TimeControl "900+10"]

1. d4 {[%emt 0:00:01]} Nf6 {[%emt 0:00:03]} 2. c4 {[%emt 0:00:01]} e6 {[%emt 0:
00:01]} 3. Nf3 {[%emt 0:00:05]} b6 {[%emt 0:00:02]} 4. g3 {[%emt 0:00:09]} Bb7
{[%emt 0:00:01]} 5. Bg2 {[%emt 0:00:03]} g6 {[%emt 0:00:28]} 6. Nc3 {[%emt 0:
00:29]} Ne4 {[%emt 0:00:08]} 7. Nxe4 {[%emt 0:01:00]} Bxe4 {[%emt 0:00:02]} 8.
h4 {[%emt 0:00:27]} Bg7 {[%emt 0:00:14]} 9. Bg5 {[%emt 0:00:29]} Qc8 {[%emt 0:
00:45]} 10. Qd2 {[%emt 0:00:42]} h6 {[%emt 0:03:10]} 11. Bf4 {[%emt 0:00:51]}
Qb7 {[%emt 0:00:51]} 12. Rd1 {[%emt 0:01:24]} d6 {[%emt 0:00:26]} 13. b4 {
[%emt 0:03:27]} Nd7 {[%emt 0:00:38]} 14. O-O {[%emt 0:02:05]} Nf6 {[%emt 0:00:
24]} 15. a4 {[%emt 0:02:30]} Rd8 {[%emt 0:01:35]} 16. a5 {[%emt 0:00:34]} b5 {
[%emt 0:03:30]} 17. Qc1 {[%emt 0:01:47]} bxc4 {[%emt 0:00:07]} 18. Qxc4 {
[%emt 0:00:03]} O-O {[%emt 0:00:30]} 19. Rc1 {[%emt 0:00:09]} Rc8 {[%emt 0:00:
49]} 20. Ne1 {[%emt 0:00:31]} Bd5 {[%emt 0:01:15]} 21. Bxd5 {[%emt 0:00:26]}
Qxd5 {[%emt 0:00:50]} 22. Nd3 {[%emt 0:01:07]} Qf5 {[%emt 0:00:11]} 23. Bd2 {
[%emt 0:00:28]} Ne4 {[%emt 0:00:15]} 24. Be3 {[%emt 0:00:01]} Qg4 {[%emt 0:00:
32]} 25. Nf4 {[%emt 0:00:19]} g5 {[%emt 0:00:59]} 26. hxg5 {[%emt 0:00:02]}
hxg5 {[%emt 0:00:02]} 27. Ng2 {[%emt 0:00:01]} d5 {[%emt 0:00:36]} 28. Qd3 {
[%emt 0:00:21]} Qh3 {[%emt 0:00:05]} 29. Bd2 {[%emt 0:00:17]} Bf6 {[%emt 0:00:
14]} 30. f4 {[%emt 0:00:09]} g4 {[%emt 0:00:09]} 31. f5 {[%emt 0:00:06]} Nxg3 {
[%emt 0:00:47]} 32. Rf4 {[%emt 0:00:05]} Bg5 {[%emt 0:00:17]} 33. Kf2 {[%emt 0:
00:20]} Bxf4 {[%emt 0:00:09]} 34. Bxf4 {[%emt 0:00:01]} Ne4+ {[%emt 0:00:01]}
35. Kg1 {[%emt 0:00:04]} exf5 {[%emt 0:00:02]} 36. Qb5 {[%emt 0:00:24]} g3 {
[%emt 0:00:06]} 37. Be3 {[%emt 0:00:09]} Qh2+ {[%emt 0:00:05]} 38. Kf1 {
[%emt 0:00:00]} Qh1+ {[%emt 0:00:03]} 39. Bg1 {[%emt 0:00:02]} Nd2+ {[%emt 0:
00:03]} 40. Ke1 {[%emt 0:00:00]} Qxg1+ {[%emt 0:00:05]} 41. Kxd2 {[%emt 0:00:
01]} Qxg2 {[%emt 0:00:02]} 42. Re1 {[%emt 0:00:36]} Rfe8 {[%emt 0:00:11]} 43.
Qd3 {[%emt 0:00:02]} Re4 {[%emt 0:00:22]} 44. Kc3 {[%emt 0:00:01]} Rce8 {
[%emt 0:00:02]} 45. e3 {[%emt 0:00:02]} Qf2 {[%emt 0:00:22]} 0-1

[Event "European Rapid Championship 2021"]
[Site "Katowice"]
[Date "2021.12.19"]
[Round "8.29"]
[White "Rudzinska, Michalina"]
[Black "Mikhaletz, Lubomir"]
[Result "1-0"]
[ECO "A06"]
[WhiteElo "1962"]
[BlackElo "2166"]
[Annotator "NA"]
[PlyCount "73"]
[EventDate "2021.12.18"]
[EventType "swiss"]
[EventCountry "POL"]
[SourceTitle "playchess.com"]
[Source "ChessBase"]
[SourceQuality "1"]
[TimeControl "900+10"]

1. Nf3 {[%emt 0:00:02]} d5 {[%emt 0:00:04]} 2. b3 {[%emt 0:00:02]} Bf5 {
[%emt 0:00:25]} 3. Bb2 {[%emt 0:00:04]} Nc6 {[%emt 0:00:12]} 4. e3 {[%emt 0:00:
14]} Nf6 {[%emt 0:00:29]} 5. d4 {[%emt 0:00:46]} e6 {[%emt 0:00:59]} 6. a3 {
[%emt 0:00:13]} Be7 {[%emt 0:00:46]} 7. Bd3 {[%emt 0:00:08]} Bxd3 {[%emt 0:00:
22]} 8. Qxd3 {[%emt 0:00:03]} Ne4 {[%emt 0:00:04]} 9. Nbd2 {[%emt 0:00:29]} f5
{[%emt 0:00:04]} 10. Ne5 {[%emt 0:00:24]} Nxe5 {[%emt 0:00:51]} 11. dxe5 {
[%emt 0:00:03]} O-O {[%emt 0:00:15]} 12. O-O {[%emt 0:00:23]} c6 {[%emt 0:01:
13]} 13. f3 {[%emt 0:00:45]} Ng5 {[%emt 0:02:20]} 14. b4 {[%emt 0:02:10]} a5 {
[%emt 0:02:02]} 15. c3 {[%emt 0:01:10]} a4 {[%emt 0:01:16]} 16. c4 {[%emt 0:01:
35]} Qd7 {[%emt 0:04:49]} 17. Rad1 {[%emt 0:00:43]} b5 {[%emt 0:00:18]} 18.
cxb5 {[%emt 0:00:23]} cxb5 {[%emt 0:00:01]} 19. f4 {[%emt 0:00:09]} Nf7 {
[%emt 0:00:05]} 20. Nf3 {[%emt 0:00:11]} Rfc8 {[%emt 0:00:05]} 21. Nd4 {
[%emt 0:00:06]} Rc4 {[%emt 0:00:06]} 22. Kh1 {[%emt 0:01:15]} h5 {[%emt 0:00:
18]} 23. Qe2 {[%emt 0:01:29]} g6 {[%emt 0:00:04]} 24. e4 {[%emt 0:00:48]} fxe4
{[%emt 0:00:20]} 25. f5 {[%emt 0:00:39]} Rxd4 {[%emt 0:00:36]} 26. fxg6 {
[%emt 0:02:34]} Rxd1 {[%emt 0:00:04]} 27. gxf7+ {[%emt 0:00:02]} Kg7 {[%emt 0:
00:01]} 28. Qxd1 {[%emt 0:00:12]} Rh8 {[%emt 0:00:06]} 29. Qe1 {[%emt 0:00:29]}
Kf8 {[%emt 0:01:08]} 30. Qg3 {[%emt 0:00:09]} d4 {[%emt 0:00:04]} 31. Qf4 {
[%emt 0:00:58]} e3 {[%emt 0:00:03]} 32. Bxd4 {[%emt 0:00:08]} e2 {[%emt 0:00:
02]} 33. Re1 {[%emt 0:00:47]} Rh7 {[%emt 0:00:02]} 34. Rxe2 {[%emt 0:00:21]}
Bg5 {[%emt 0:00:23]} 35. Bc5+ {[%emt 0:00:36]} Be7 {[%emt 0:00:02]} 36. Rd2 {
[%emt 0:00:04]} Rxf7 {[%emt 0:00:11]} 37. Qxf7+ {[%emt 0:00:04]} 1-0

[Event "European Rapid Championship 2021"]
[Site "Katowice"]
[Date "2021.12.19"]
[Round "8.30"]
[White "Semjonovs, Ilja"]
[Black "Vingris, Mikelis"]
[Result "1-0"]
[ECO "A46"]
[WhiteElo "2383"]
[BlackElo "1904"]
[Annotator "NA"]
[PlyCount "105"]
[EventDate "2021.12.18"]
[EventType "swiss"]
[EventCountry "POL"]
[SourceTitle "playchess.com"]
[Source "ChessBase"]
[SourceQuality "1"]
[TimeControl "900+10"]

1. d4 {[%emt 0:00:34]} Nf6 {[%emt 0:00:01]} 2. Nf3 {[%emt 0:00:03]} c5 3. c3 {
[%emt 0:00:03]} d5 {[%emt 0:00:03]} 4. Bg5 {[%emt 0:00:06]} Nc6 {[%emt 0:00:04]
} 5. e3 {[%emt 0:00:03]} Qb6 {[%emt 0:00:39]} 6. Qb3 {[%emt 0:01:19]} c4 {
[%emt 0:00:07]} 7. Qc2 {[%emt 0:00:30]} Bf5 {[%emt 0:00:33]} 8. Qc1 {[%emt 0:
01:46]} e6 {[%emt 0:00:04]} 9. Nbd2 {[%emt 0:00:04]} Be7 {[%emt 0:00:44]} 10.
b3 {[%emt 0:00:19]} cxb3 {[%emt 0:00:05]} 11. axb3 {[%emt 0:00:01]} O-O {
[%emt 0:00:16]} 12. Be2 {[%emt 0:00:14]} Rfc8 {[%emt 0:00:06]} 13. Qb2 {
[%emt 0:00:43]} Nb4 {[%emt 0:04:11]} 14. O-O {[%emt 0:02:59]} Nd3 {[%emt 0:00:
20]} 15. Bxd3 {[%emt 0:00:08]} Bxd3 {[%emt 0:00:01]} 16. Rfc1 {[%emt 0:00:03]}
h6 {[%emt 0:00:42]} 17. Ne5 {[%emt 0:01:04]} Bf5 {[%emt 0:00:23]} 18. Nd7 {
[%emt 0:02:01]} Nxd7 {[%emt 0:03:20]} 19. Bxe7 {[%emt 0:00:03]} e5 {[%emt 0:00:
04]} 20. Qa3 {[%emt 0:02:49]} Rc6 {[%emt 0:01:06]} 21. Nf3 {[%emt 0:00:56]}
Rac8 {[%emt 0:01:50]} 22. Bb4 {[%emt 0:01:03]} f6 {[%emt 0:02:08]} 23. h3 {
[%emt 0:00:42]} a6 {[%emt 0:00:28]} 24. Nd2 {[%emt 0:00:43]} Bd3 {[%emt 0:00:
50]} 25. Qb2 {[%emt 0:00:50]} Qd8 {[%emt 0:00:14]} 26. Ra5 {[%emt 0:00:07]} Bb5
{[%emt 0:00:37]} 27. Raa1 Qe8 {[%emt 0:00:16]} 28. Qa2 {[%emt 0:00:22]} Bd3 {
[%emt 0:00:09]} 29. c4 {[%emt 0:00:04]} exd4 {[%emt 0:00:14]} 30. exd4 {
[%emt 0:00:01]} b5 {[%emt 0:00:17]} 31. c5 {[%emt 0:00:12]} Nf8 {[%emt 0:00:06]
} 32. Re1 {[%emt 0:00:03]} Qf7 {[%emt 0:00:04]} 33. Re3 {[%emt 0:00:14]} Bf5 {
[%emt 0:00:14]} 34. Rae1 {[%emt 0:00:10]} Ne6 {[%emt 0:00:05]} 35. Qb2 {
[%emt 0:00:08]} Nf4 {[%emt 0:00:16]} 36. Qc3 {[%emt 0:00:02]} Re6 {[%emt 0:00:
12]} 37. Rxe6 {[%emt 0:00:12]} Bxe6 {[%emt 0:00:12]} 38. Qe3 {[%emt 0:00:36]}
g5 {[%emt 0:00:11]} 39. Nf1 {[%emt 0:00:03]} Qh5 {[%emt 0:00:08]} 40. Ng3 {
[%emt 0:00:06]} Qg6 {[%emt 0:00:14]} 41. Ne2 {[%emt 0:00:07]} Nxe2+ {[%emt 0:
00:10]} 42. Qxe2 {[%emt 0:00:12]} Rc6 {[%emt 0:00:01]} 43. Ba5 {[%emt 0:00:19]}
Kf7 {[%emt 0:00:08]} 44. Bb6 {[%emt 0:00:04]} g4 {[%emt 0:00:21]} 45. hxg4 {
[%emt 0:00:16]} Qxg4 {[%emt 0:00:01]} 46. Qa2 {[%emt 0:00:11]} Qxd4 {[%emt 0:
00:08]} 47. Qxa6 {[%emt 0:00:05]} Qc3 {[%emt 0:00:24]} 48. Qb7+ {[%emt 0:00:09]
} Kg6 {[%emt 0:00:05]} 49. Re3 {[%emt 0:00:16]} Qc1+ {[%emt 0:00:01]} 50. Kh2 {
[%emt 0:00:00]} d4 {[%emt 0:00:01]} 51. Rg3+ {[%emt 0:00:03]} Kf5 {[%emt 0:00:
24]} 52. Qxc6 {[%emt 0:00:02]} Qd2 {[%emt 0:00:20]} 53. Rf3+ {[%emt 0:00:06]}
1-0

[Event "European Rapid Championship 2021"]
[Site "Katowice"]
[Date "2021.12.19"]
[Round "8.30"]
[White "Szpar, Milosz"]
[Black "Kacprzak, Kacper"]
[Result "1-0"]
[ECO "B53"]
[WhiteElo "2315"]
[BlackElo "2042"]
[Annotator "NA"]
[PlyCount "143"]
[EventDate "2021.12.18"]
[EventType "swiss"]
[EventCountry "POL"]
[SourceTitle "playchess.com"]
[Source "ChessBase"]
[SourceQuality "1"]
[TimeControl "900+10"]

1. e4 {[%emt 0:00:02]} c5 {[%emt 0:00:01]} 2. Nf3 {[%emt 0:00:02]} d6 {[%emt 0:
00:02]} 3. d4 {[%emt 0:00:03]} cxd4 {[%emt 0:00:02]} 4. Qxd4 {[%emt 0:00:03]}
Nf6 {[%emt 0:00:12]} 5. Nc3 {[%emt 0:00:03]} a6 {[%emt 0:00:15]} 6. Bg5 {
[%emt 0:00:04]} Nc6 {[%emt 0:00:03]} 7. Qe3 {[%emt 0:00:05]} e6 {[%emt 0:00:41]
} 8. Be2 {[%emt 0:00:08]} Be7 {[%emt 0:00:03]} 9. O-O {[%emt 0:00:22]} O-O {
[%emt 0:00:03]} 10. Rfd1 {[%emt 0:00:11]} Qc7 {[%emt 0:00:07]} 11. Rd2 {
[%emt 0:01:12]} b5 {[%emt 0:01:57]} 12. Rad1 {[%emt 0:00:25]} Rd8 {[%emt 0:00:
22]} 13. h3 {[%emt 0:01:35]} Bb7 {[%emt 0:00:32]} 14. a3 {[%emt 0:00:29]} Rac8
{[%emt 0:00:49]} 15. Qf4 {[%emt 0:02:08]} Ne5 {[%emt 0:01:47]} 16. Nxe5 {
[%emt 0:02:34]} dxe5 {[%emt 0:00:04]} 17. Rxd8+ {[%emt 0:00:10]} Rxd8 {[%emt 0:
01:44]} 18. Rxd8+ {[%emt 0:00:30]} Bxd8 {[%emt 0:00:03]} 19. Qe3 {[%emt 0:01:
18]} h6 {[%emt 0:00:43]} 20. Bh4 {[%emt 0:01:08]} Be7 {[%emt 0:00:42]} 21. Bd3
{[%emt 0:01:05]} Bc5 {[%emt 0:01:33]} 22. Qe2 {[%emt 0:00:45]} Nd7 {[%emt 0:01:
04]} 23. Nd1 {[%emt 0:00:58]} Nf8 {[%emt 0:00:02]} 24. b4 {[%emt 0:00:58]} Bb6
{[%emt 0:01:15]} 25. Bg3 {[%emt 0:00:23]} Ng6 {[%emt 0:00:01]} 26. Kh1 {
[%emt 0:00:29]} Nf4 {[%emt 0:00:47]} 27. Qd2 {[%emt 0:00:05]} Bc6 {[%emt 0:02:
17]} 28. f3 {[%emt 0:00:07]} a5 {[%emt 0:00:26]} 29. Bf2 {[%emt 0:00:46]} axb4
{[%emt 0:00:03]} 30. axb4 {[%emt 0:00:11]} Qa7 {[%emt 0:00:19]} 31. Bxb6 {
[%emt 0:00:29]} Qxb6 {[%emt 0:00:01]} 32. Qc3 {[%emt 0:00:14]} f6 {[%emt 0:00:
29]} 33. Kh2 {[%emt 0:00:05]} h5 {[%emt 0:00:08]} 34. g3 {[%emt 0:00:10]} Ng6 {
[%emt 0:00:01]} 35. h4 {[%emt 0:00:02]} Nf8 {[%emt 0:00:18]} 36. Kg2 {[%emt 0:
00:07]} Nd7 {[%emt 0:00:06]} 37. Qb3 {[%emt 0:00:19]} Bb7 {[%emt 0:00:02]} 38.
Nc3 {[%emt 0:00:15]} Ba6 {[%emt 0:00:03]} 39. Qa2 {[%emt 0:00:10]} Nb8 {
[%emt 0:00:22]} 40. Kf1 {[%emt 0:01:03]} Kf7 {[%emt 0:00:06]} 41. Qa5 {[%emt 0:
00:17]} Qxa5 {[%emt 0:01:10]} 42. bxa5 {[%emt 0:00:02]} Nc6 {[%emt 0:00:23]}
43. Bxb5 {[%emt 0:00:26]} Bxb5+ {[%emt 0:00:02]} 44. Nxb5 {[%emt 0:00:01]} Nxa5
{[%emt 0:00:01]} 45. Ke2 {[%emt 0:00:06]} Ke7 {[%emt 0:00:06]} 46. Kd3 {
[%emt 0:00:04]} g5 {[%emt 0:00:08]} 47. Kc3 {[%emt 0:00:32]} Kd7 {[%emt 0:00:
26]} 48. Kb4 {[%emt 0:00:04]} Nb7 {[%emt 0:00:01]} 49. Na3 {[%emt 0:00:14]} Kc6
{[%emt 0:00:26]} 50. Nc4 {[%emt 0:00:05]} gxh4 {[%emt 0:00:02]} 51. gxh4 {
[%emt 0:00:01]} Nc5 {[%emt 0:00:15]} 52. Na5+ {[%emt 0:00:04]} Kb6 {[%emt 0:00:
01]} 53. Nc4+ {[%emt 0:00:00]} Kc6 {[%emt 0:00:00]} 54. Na5+ {[%emt 0:00:08]}
Kb6 {[%emt 0:00:01]} 55. Nb3 {[%emt 0:00:03]} Na6+ {[%emt 0:00:07]} 56. Kc4 {
[%emt 0:00:01]} Kc6 {[%emt 0:00:28]} 57. Nc1 {[%emt 0:00:07]} Nc5 {[%emt 0:00:
09]} 58. Ne2 {[%emt 0:00:03]} Kd6 {[%emt 0:01:04]} 59. Ng3 {[%emt 0:00:07]} Nd7
{[%emt 0:00:06]} 60. Nxh5 {[%emt 0:00:03]} f5 {[%emt 0:00:00]} 61. Kb5 {
[%emt 0:00:42]} Ke7 {[%emt 0:00:15]} 62. Ng3 {[%emt 0:00:10]} fxe4 {[%emt 0:00:
07]} 63. Nxe4 {[%emt 0:00:09]} Nf8 {[%emt 0:00:01]} 64. c4 {[%emt 0:00:12]} Ng6
{[%emt 0:00:02]} 65. h5 {[%emt 0:00:01]} Nf4 {[%emt 0:00:00]} 66. Ng3 {[%emt 0:
00:15]} Kd7 {[%emt 0:00:23]} 67. c5 {[%emt 0:00:08]} Kc7 {[%emt 0:00:01]} 68.
h6 {[%emt 0:00:04]} Ng6 {[%emt 0:00:01]} 69. h7 {[%emt 0:00:06]} Nh8 {[%emt 0:
00:01]} 70. c6 {[%emt 0:00:04]} Nf7 {[%emt 0:00:02]} 71. Ne4 {[%emt 0:00:04]}
Nh8 {[%emt 0:00:02]} 72. Ng5 1-0

[Event "European Rapid Championship 2021"]
[Site "Katowice"]
[Date "2021.12.19"]
[Round "9.1"]
[White "Adamczewski, Maciej"]
[Black "Druckenthaner, Andreas"]
[Result "0-1"]
[ECO "A80"]
[WhiteElo "2081"]
[BlackElo "2291"]
[Annotator "NA"]
[PlyCount "122"]
[EventDate "2021.12.18"]
[EventType "swiss"]
[EventCountry "POL"]
[SourceTitle "playchess.com"]
[Source "ChessBase"]
[SourceQuality "1"]
[TimeControl "900+10"]

1. d4 {[%emt 0:00:02]} f5 {[%emt 0:00:02]} 2. g4 {[%emt 0:00:02]} fxg4 {
[%emt 0:00:05]} 3. h3 {[%emt 0:00:01]} d5 {[%emt 0:00:14]} 4. Qd3 {[%emt 0:00:
03]} Nf6 {[%emt 0:00:17]} 5. Nc3 {[%emt 0:00:06]} Nc6 {[%emt 0:00:19]} 6. Bf4 {
[%emt 0:00:40]} a6 {[%emt 0:00:12]} 7. a3 {[%emt 0:00:10]} g6 {[%emt 0:00:20]}
8. hxg4 {[%emt 0:00:10]} Bxg4 {[%emt 0:00:03]} 9. f3 {[%emt 0:00:01]} Be6 {
[%emt 0:01:06]} 10. Nh3 {[%emt 0:00:11]} Bg7 {[%emt 0:01:09]} 11. Ng5 {[%emt 0:
00:05]} Bg8 {[%emt 0:01:13]} 12. e3 {[%emt 0:00:29]} Nh5 {[%emt 0:00:12]} 13.
Rxh5 {[%emt 0:00:23]} gxh5 {[%emt 0:00:02]} 14. Bh3 {[%emt 0:00:09]} e5 {
[%emt 0:00:24]} 15. dxe5 {[%emt 0:00:22]} Nxe5 {[%emt 0:00:01]} 16. Qf5 {
[%emt 0:00:29]} Qe7 {[%emt 0:01:08]} 17. O-O-O {[%emt 0:01:21]} c6 {[%emt 0:00:
02]} 18. e4 {[%emt 0:01:06]} h6 {[%emt 0:02:13]} 19. Ne6 {[%emt 0:03:16]} Bxe6
{[%emt 0:00:04]} 20. Qxe6 {[%emt 0:00:03]} Qxe6 {[%emt 0:00:04]} 21. Bxe6 {
[%emt 0:00:03]} d4 {[%emt 0:01:12]} 22. Ne2 {[%emt 0:04:46]} Nxf3 {[%emt 0:00:
44]} 23. Ng3 {[%emt 0:00:02]} Bf6 {[%emt 0:02:17]} 24. Rf1 {[%emt 0:01:40]} Ne5
{[%emt 0:00:14]} 25. Kd1 {[%emt 0:00:34]} Ke7 {[%emt 0:01:17]} 26. Bb3 {
[%emt 0:00:03]} Raf8 {[%emt 0:00:42]} 27. Nf5+ {[%emt 0:00:02]} Kd7 {[%emt 0:
00:11]} 28. Ke2 {[%emt 0:00:30]} Ng4 {[%emt 0:00:37]} 29. c3 {[%emt 0:00:16]}
d3+ {[%emt 0:00:13]} 30. Kxd3 {[%emt 0:00:22]} Bg5 {[%emt 0:00:02]} 31. Bg3 {
[%emt 0:01:40]} h4 {[%emt 0:00:02]} 32. Bd1 {[%emt 0:00:12]} hxg3 {[%emt 0:00:
40]} 33. Bxg4 {[%emt 0:00:01]} Kc7 {[%emt 0:00:19]} 34. Rf3 {[%emt 0:00:31]} h5
{[%emt 0:00:10]} 35. Bh3 {[%emt 0:00:20]} h4 {[%emt 0:00:01]} 36. Kc4 {[%emt 0:
00:08]} Re8 {[%emt 0:00:35]} 37. Ng7 {[%emt 0:00:43]} Rxe4+ {[%emt 0:00:15]}
38. Kd3 {[%emt 0:00:00]} Re5 {[%emt 0:00:21]} 39. Kd4 {[%emt 0:00:15]} Rd5+ {
[%emt 0:00:06]} 40. Ke4 {[%emt 0:00:03]} Rg8 {[%emt 0:00:36]} 41. c4 {[%emt 0:
00:11]} Rxg7 {[%emt 0:00:10]} 42. cxd5 {[%emt 0:00:01]} cxd5+ {[%emt 0:00:01]}
43. Kxd5 {[%emt 0:00:03]} Be7 {[%emt 0:00:13]} 44. Rc3+ {[%emt 0:00:04]} Kb8 {
[%emt 0:00:08]} 45. Rc8+ {[%emt 0:00:06]} Ka7 {[%emt 0:00:01]} 46. Bg2 {
[%emt 0:00:03]} h3 {[%emt 0:00:14]} 47. Bxh3 {[%emt 0:00:29]} g2 {[%emt 0:00:
01]} 48. Bxg2 {[%emt 0:00:18]} Rxg2 {[%emt 0:00:02]} 49. b4 {[%emt 0:00:13]}
Rd2+ {[%emt 0:00:10]} 50. Ke4 {[%emt 0:00:04]} Rd7 {[%emt 0:00:15]} 51. Rc3 {
[%emt 0:00:11]} Bf6 {[%emt 0:00:05]} 52. Rf3 {[%emt 0:00:03]} Bb2 {[%emt 0:00:
03]} 53. Rb3 {[%emt 0:00:02]} Bg7 {[%emt 0:00:13]} 54. Rg3 {[%emt 0:00:07]} Kb8
{[%emt 0:00:09]} 55. Rg6 {[%emt 0:00:10]} Kc7 {[%emt 0:00:01]} 56. Kf4 {
[%emt 0:00:34]} Bb2 {[%emt 0:00:08]} 57. Rg3 {[%emt 0:00:03]} Rd4+ {[%emt 0:00:
11]} 58. Kf5 {[%emt 0:00:04]} Kc6 {[%emt 0:00:10]} 59. Rb3 {[%emt 0:00:01]} Rd2
{[%emt 0:00:01]} 60. Ke4 {[%emt 0:00:07]} Kb5 {[%emt 0:00:04]} 61. Ke3 {
[%emt 0:00:10]} Rh2 {[%emt 0:00:05]} 0-1

[Event "European Rapid Championship 2021"]
[Site "Katowice"]
[Date "2021.12.19"]
[Round "9.2"]
[White "Kosakowski, Jakub"]
[Black "Balog, Imre"]
[Result "0-1"]
[ECO "C10"]
[WhiteElo "2438"]
[BlackElo "2629"]
[Annotator "ChessBase"]
[PlyCount "98"]
[EventDate "2021.12.18"]
[EventType "swiss"]
[EventCountry "POL"]
[SourceTitle "playchess.com"]
[Source "ChessBase"]
[SourceQuality "1"]
[TimeControl "900+10"]

1. e4 {[%emt 0:00:03]} e6 {[%emt 0:00:02]} 2. d4 {[%emt 0:00:05]} d5 {[%emt 0:
00:03]} 3. Nd2 {[%emt 0:00:20]} dxe4 {[%emt 0:00:14]} 4. Nxe4 {[%emt 0:00:02]}
Nd7 {[%emt 0:00:02]} 5. Bd3 {[%emt 0:00:12]} Ngf6 {[%emt 0:00:05]} 6. Qe2 {
[%emt 0:00:04]} a6 {[%emt 0:01:34]} 7. Nf3 {[%emt 0:00:20]} Nxe4 {[%emt 0:00:
14]} 8. Bxe4 {[%emt 0:00:32]} Nf6 {[%emt 0:00:03]} 9. Bg5 {[%emt 0:00:10]} Qd6
{[%emt 0:01:16]} 10. O-O-O {[%emt 0:02:53]} Nxe4 {[%emt 0:00:12]} 11. Qxe4 {
[%emt 0:00:02]} Qd5 {[%emt 0:01:11]} 12. Qxd5 {[%emt 0:01:17]} exd5 {[%emt 0:
00:02]} 13. Rhe1+ {[%emt 0:00:03]} Be6 {[%emt 0:00:01]} 14. Bf4 {[%emt 0:00:21]
} O-O-O {[%emt 0:00:05]} 15. Ng5 {[%emt 0:00:15]} Re8 {[%emt 0:01:08]} 16. Re3
{[%emt 0:00:36]} Kd7 {[%emt 0:00:09]} 17. Rde1 {[%emt 0:00:32]} h6 {[%emt 0:00:
09]} 18. Nxe6 {[%emt 0:00:22]} Rxe6 {[%emt 0:00:02]} 19. Rxe6 {[%emt 0:02:06]}
fxe6 {[%emt 0:00:02]} 20. Kd2 {[%emt 0:00:15]} Be7 {[%emt 0:00:30]} 21. Be5 {
[%emt 0:00:42]} Rf8 {[%emt 0:00:02]} 22. f3 {[%emt 0:00:45]} g6 {[%emt 0:00:02]
} 23. Kd3 {[%emt 0:00:39]} h5 {[%emt 0:00:36]} 24. b3 {[%emt 0:00:27]} Rf5 {
[%emt 0:01:09]} 25. c4 {[%emt 0:00:38]} dxc4+ {[%emt 0:00:15]} 26. bxc4 {
[%emt 0:00:04]} Bd6 {[%emt 0:00:02]} 27. Ke4 {[%emt 0:02:03]} b5 {[%emt 0:04:
11]} 28. cxb5 {[%emt 0:01:16]} axb5 {[%emt 0:00:02]} 29. Rb1 {[%emt 0:00:08]}
Bxe5 {[%emt 0:01:32]} 30. dxe5 {[%emt 0:00:01]} Kc6 {[%emt 0:00:00]} 31. h4 {
[%emt 0:01:23]} Rf8 {[%emt 0:00:31]} 32. Rb2 {[%emt 0:00:47]} Kc5 {[%emt 0:00:
13]} 33. g4 {[%emt 0:00:12]} b4 {[%emt 0:00:13]} 34. gxh5 {[%emt 0:00:44]} gxh5
{[%emt 0:00:01]} 35. Rc2+ {[%emt 0:00:04]} Kb6 {[%emt 0:00:01]} 36. Rg2 {
[%emt 0:00:00]} c5 {[%emt 0:01:25]} 37. Rg6 {[%emt 0:00:11]} Re8 {[%emt 0:00:
01]} 38. f4 {[%emt 0:00:01]} Kb5 {[%emt 0:00:01]} 39. f5 {[%emt 0:00:06]} exf5+
{[%emt 0:00:00]} 40. Kxf5 {[%emt 0:00:01]} c4 {[%emt 0:00:02]} 41. e6 {[%emt 0:
00:54]} c3 {[%emt 0:00:04]} 42. Kf6 {[%emt 0:00:10]} c2 {[%emt 0:01:13]} 43.
Rg1 {[%emt 0:00:18]} Kc4 {[%emt 0:00:10]} 44. Kf7 {[%emt 0:00:07]} Ra8 {
[%emt 0:00:02]} 45. e7 {[%emt 0:00:12]} Kc3 {[%emt 0:00:01]} 46. e8=Q {[%emt 0:
00:14]} Rxe8 {[%emt 0:00:01]} 47. Kxe8 {[%emt 0:00:01]} Kb2 {[%emt 0:00:01]}
48. Kf7 {[%emt 0:00:19]} Kxa2 {[%emt 0:00:02]} 49. Kg6 {[%emt 0:00:07]} b3 {
[%emt 0:00:01]} 0-1